Workbook

Sheet LISTE des apprenants
A1: MATRICULE | B1: NOM ET PRENOMS | C1: SEXE | D1: Classe
A2: 16215341 N | B2: Abraham Isaac | C2: M | D2: 6ème
A3: 1740850 X | B3: Joseph Manasée | C3: M | D3: 3ème
C4: M | D4: 3ème
C5: M | D5: 3ème
C6: M | D6: 3ème
C7: F | D7: 3ème
C8: M | D8: 3ème
C9: M | D9: 3ème
C10: M | D10: 3ème
C11: M | D11: 3ème
C12: F | D12: 3ème
C13: M | D13: 3ème
C14: M | D14: 3ème
C15: M | D15: 3ème
C16: F | D16: 3ème
C17: M | D17: 3ème
C18: M | D18: 3ème
C19: M | D19: 3ème
C20: F | D20: 3ème
C21: F | D21: 3ème
C22: M | D22: 3ème
C23: M | D23: 3ème
C24: M | D24: 3ème
C25: M | D25: 3ème
C26: M | D26: 3ème
C27: F | D27: 3ème
C28: M | D28: 3ème
C29: M | D29: 3ème
C30: M | D30: 3ème
C31: M | D31: 3ème
C32: M | D32: 3ème
C33: M | D33: 3ème
C34: M | D34: 3ème
C35: M | D35: 3ème
C36: M | D36: 3ème
C37: M | D37: 3ème
C38: F | D38: 3ème
C39: M | D39: 3ème
C40: M | D40: 3ème
C41: M | D41: 3ème
C42: M | D42: 3ème
C43: M | D43: 3ème
C44: M | D44: 3ème
C45: M | D45: 3ème
C46: F | D46: 3ème
C47: M | D47: 3ème
C48: F | D48: 4ème
C49: M | D49: 4ème
C50: M | D50: 4ème
C51: M | D51: 4ème
C52: M | D52: 4ème
C53: M | D53: 4ème
C54: M | D54: 4ème
C55: F | D55: 4ème
C56: M | D56: 4ème
C57: M | D57: 4ème
C58: M | D58: 4ème
C59: M | D59: 4ème
C60: M | D60: 4ème
C61: M | D61: 4ème
C62: F | D62: 4ème
C63: M | D63: 4ème
C64: F | D64: 4ème
C65: M | D65: 4ème
C66: F | D66: 4ème
C67: F | D67: 4ème
C68: M | D68: 4ème
C69: M | D69: 4ème
C70: M | D70: 4ème
C71: M | D71: 4ème
C72: M | D72: 4ème
C73: F | D73: 4ème
C74: M | D74: 4ème
C75: M | D75: 4ème
C76: M | D76: 4ème
C77: M | D77: 4ème
C78: F | D78: 4ème
C79: M | D79: 4ème
C80: M | D80: 4ème
C81: F | D81: 4ème
C82: M | D82: 4ème
C83: M | D83: 4ème
C84: F | D84: 5ème
C85: M | D85: 5ème
C86: F | D86: 5ème
C87: M | D87: 5ème
C88: M | D88: 5ème
C89: M | D89: 5ème
C90: M | D90: 5ème
C91: M | D91: 5ème
C92: F | D92: 5ème
C93: F | D93: 5ème
C94: F | D94: 5ème
C95: M | D95: 5ème
C96: F | D96: 5ème
C97: M | D97: 5ème
C98: F | D98: 5ème
C99: M | D99: 5ème
C100: M | D100: 5ème
C101: M | D101: 5ème
C102: M | D102: 5ème
C103: M | D103: 5ème
C104: M | D104: 5ème
C105: F | D105: 5ème
C106: M | D106: 5ème
C107: M | D107: 5ème
C108: F | D108: 5ème
C109: M | D109: 5ème
C110: M | D110: 5ème
C111: F | D111: 5ème
C112: M | D112: 5ème
C113: M | D113: 5ème
C114: M | D114: 5ème
C115: M | D115: 5ème
C116: M | D116: 5ème
C117: M | D117: 5ème
C118: M | D118: 5ème
C119: F | D119: 5ème
C120: M | D120: 5ème
C121: F | D121: 5ème
C122: M | D122: 5ème
C123: M | D123: 5ème
C124: F | D124: 5ème
C125: F | D125: 5ème
C126: F | D126: 5ème
C127: M | D127: 5ème
C128: M | D128: 5ème
C129: M | D129: 5ème
C130: M | D130: 5ème
C131: F | D131: 5ème
C132: F | D132: 5ème
C133: M | D133: 6ème2
C134: F | D134: 6ème2
C135: M | D135: 6ème2
C136: F | D136: 6ème2
C137: M | D137: 6ème2
C138: M | D138: 6ème2
C139: M | D139: 6ème2
C140: F | D140: 6ème2
C141: M | D141: 6ème2
C142: F | D142: 6ème2
C143: F | D143: 6ème2
C144: M | D144: 6ème2
C145: M | D145: 6ème2
C146: M | D146: 6ème2
C147: F | D147: 6ème2
C148: M | D148: 6ème2
C149: F | D149: 6ème2
C150: M | D150: 6ème2
C151: M | D151: 6ème2
C152: M | D152: 6ème2
C153: M | D153: 6ème2
C154: F | D154: 6ème2
C155: M | D155: 6ème2
C156: F | D156: 6ème2
C157: F | D157: 6ème2
C158: M | D158: 6ème2
C159: F | D159: 6ème2
C160: F | D160: 6ème2
C161: M | D161: 6ème2
C162: M | D162: 6ème2
C163: M | D163: 6ème2
C164: F | D164: 6ème2
C165: F | D165: 6ème2
C166: F | D166: 6ème2
C167: F | D167: 6ème2
C168: M | D168: 6ème2
C169: M | D169: 6ème2
C170: M | D170: 6ème2
C171: F | D171: 6ème2
C172: M | D172: 6ème2
C173: M | D173: 6ème2
C174: F | D174: 6ème2
C175: M | D175: 6ème2
C176: F | D176: 6ème2
C177: M | D177: 6ème2
C178: M | D178: 6ème2
C179: M | D179: 6ème2
C180: F | D180: 6ème2
C181: F | D181: 6ème2
C182: F | D182: 6ème2
C183: M | D183: 6ème2
C184: F | D184: 6ème2
C185: M | D185: 6ème2
C186: M | D186: 6ème2
C187: F | D187: 6ème2
C188: M | D188: 6ème2
C189: F | D189: 6ème2
C190: F | D190: 6ème2
C191: M | D191: 6ème2
C192: M | D192: 6ème2
C193: M | D193: 6ème2
C194: M | D194: 6ème2
C195: F | D195: 6ème2
C196: F | D196: 6ème2
C197: F | D197: 6ème2
C198: F | D198: 6ème2
C199: F | D199: 6ème2
C200: M | D200: 6ème2
... 66 more rows

Sheet Liste des Profs
C5: Nom des Profs | D5: Matière | E5: Niveau
C6: MARC | D6: Français | E6: 3ème | F6: 4ème
C7: SIMPLICE | D7: Français | E7: 5ème | F7: 4ème
C8: GEORGE | D8: Maths | E8: 6ème1 | F8: 6ème2 | G8: 5ème | H8: 4ème | I8: 3ème
C9: SORHO | D9: Maths | E9: 6ème1 | F9: 6ème2 | G9: 5ème | H9: 4ème
C10: CEDRIC | D10: Histoire-Gèographie | E10: 6ème1 | F10: 6ème2 | G10: 5ème | H10: 4ème | I10: 3ème
C11: KOFFI | D11: Histoire-Gèographie | E11: 5ème | F11: 4ème | G11: 3ème
C12: ATTA Y. | D12: Allemand | E12: 6ème2 | F12: 5ème | G12: 4ème
C13: FRANCOIS | D13: Espagnol | E13: 6ème1 | F13: 6ème2 | H13: 4ème
C14: JULIEN | D14: SVT | E14: 4ème | F14: 3ème
C15: NIANGORAN | D15: SVT | E15: 6ème2 | F15: 5ème | G15: 4ème
C16: EPONON | D16: EPS | E16: 6ème1 | F16: 6ème2 | G16: 5ème | H16: 4ème | I16: 3ème
C17: TUTO | D17: Physiques-Chimies | E17: 4ème | F17: 3ème
C18: KONE | D18: Physiques-Chimies | E18: 5ème | F18: 4ème | G18: 3ème
C19: YOBOUE | D19: Edhc | E19: 6ème1 | F19: 6ème2 | G19: 5ème | H19: 4ème | I19: 3ème
C20: TOUSSAINT | D20: Anglais | E20: 5ème | F20: 4ème | G20: 3ème
C21: DIGBEU A. | D21: Anglais | E21: 6ème1 | F21: 6ème2 | G21: 5ème | H21: 4ème | I21: 3ème

Sheet 3ème
A1: MINISTERE DE L’EDUCATION NATIONALE REPUBLIQUE DE CÔTE D’IVOIRE
A2: DE L’ENSEIGNEMENT TECHNIQUE ET
A3: DE LA FORMATION PROFESSIONNELLE Union – Discipline - Travail
A5: COLLEGE PRIVE NATCHEZHE BAHOULIFLA | E5: Année Scolaire : 2017 – 2018
A6: Tél : 08 06 19 58/ 48 11 91 91 | E6: Classe: | F6: 6ème 2
B7: 1 | C7: 2 | D7: 3 | E7: 4 | F7: 5 | G7: 6 | H7: 7 | I7: 8 | J7: 9 | K7: 10 | L7: 11 | M7: 12 | N7: 13 | O7: 14 | P7: 15 | Q7: 16 | R7: 17 | S7: 18 | T7: 19 | U7: 20 | V7: 21 | W7: 22 | X7: 23 | Y7: 24
A8: N° | B8: MATRICULE | C8: NOM ET PRENOMS | D8: ORI | E8: CF | F8: O.G | G8: E.O | H8: FR | I8: Rang | J8: ANG | K8: Rang | L8: H.G | M8: Rang | N8: MATHS | O8: Rang | P8: P.C | Q8: Rang | R8: SVT | S8: Rang | T8: EPS | U8: Rang | V8: EDCH | W8: Rang | X8: M/20 | Y8: Rang
A9: 1
A10: 2
A11: 3
A12: 4
A13: 5
A14: 6
A15: 7
A16: 8
A17: 9
A18: 10
A19: 11
A20: 12
A21: 13
A22: 14
A23: 15
A24: 16
A25: 17
A26: 18
A27: 19
A28: 20
A29: 21
A30: 22
A31: 23
A32: 24
A33: 25
A34: 26
A35: 27
A36: 28
A37: 29
A38: 30
A39: 31
A40: 32
A41: 33
A42: 34
A43: 35
A44: 36
A45: 37
A46: 38
A47: 39
A48: 40
A49: 41
A50: 42
A51: 43
A52: 44
A53: 45
A54: 46
A55: 47
A56: 48
A57: 49
A58: 50
A59: 51
A60: 52
A61: 53
A62: 54
A63: 55
A64: 56
A65: 57
A66: 58
A67: 59
A68: 60
A69: 61
A70: 62
A71: 63
A72: 64
A73: 65
A74: 66
A75: 67
A76: 68
A77: 69
A78: 70

Sheet 4ème
A1: MINISTERE DE L’EDUCATION NATIONALE REPUBLIQUE DE CÔTE D’IVOIRE
A2: DE L’ENSEIGNEMENT TECHNIQUE ET
A3: DE LA FORMATION PROFESSIONNELLE Union – Discipline - Travail
A5: COLLEGE PRIVE NATCHEZHE BAHOULIFLA | E5: Année Scolaire : 2017 – 2018
A6: Tél : 08 06 19 58/ 48 11 91 91 | E6: Classe: | F6: 6ème 2
B7: 1 | C7: 2 | D7: 3 | E7: 4 | F7: 5 | G7: 6 | H7: 7 | I7: 8 | J7: 9 | K7: 10 | L7: 11 | M7: 12 | N7: 13 | O7: 14 | P7: 15 | Q7: 16 | R7: 17 | S7: 18 | T7: 19 | U7: 20 | V7: 21 | W7: 22 | X7: 23 | Y7: 24
A8: N° | B8: MATRICULE | C8: NOM ET PRENOMS | D8: ORI | E8: CF | F8: O.G | G8: E.O | H8: FR | I8: Rang | J8: ANG | K8: Rang | L8: H.G | M8: Rang | N8: MATHS | O8: Rang | P8: P.C | Q8: Rang | R8: SVT | S8: Rang | T8: EPS | U8: Rang | V8: EDCH | W8: Rang | X8: M/20 | Y8: Rang
A9: 1
A10: 2
A11: 3
A12: 4
A13: 5
A14: 6
A15: 7
A16: 8
A17: 9
A18: 10
A19: 11
A20: 12
A21: 13
A22: 14
A23: 15
A24: 16
A25: 17
A26: 18
A27: 19
A28: 20
A29: 21
A30: 22
A31: 23
A32: 24
A33: 25
A34: 26
A35: 27
A36: 28
A37: 29
A38: 30
A39: 31
A40: 32
A41: 33
A42: 34
A43: 35
A44: 36
A45: 37
A46: 38
A47: 39
A48: 40
A49: 41
A50: 42
A51: 43
A52: 44
A53: 45
A54: 46
A55: 47
A56: 48
A57: 49
A58: 50
A59: 51
A60: 52
A61: 53
A62: 54
A63: 55
A64: 56
A65: 57
A66: 58
A67: 59
A68: 60
A69: 61
A70: 62
A71: 63
A72: 64
A73: 65
A74: 66
A75: 67
A76: 68
A77: 69
A78: 70

Sheet 5ème
A1: MINISTERE DE L’EDUCATION NATIONALE REPUBLIQUE DE CÔTE D’IVOIRE
A2: DE L’ENSEIGNEMENT TECHNIQUE ET
A3: DE LA FORMATION PROFESSIONNELLE Union – Discipline - Travail
A5: COLLEGE PRIVE NATCHEZHE BAHOULIFLA | E5: Année Scolaire : 2017 – 2018
A6: Tél : 08 06 19 58/ 48 11 91 91 | E6: Classe: | F6: 6ème 2
B7: 1 | C7: 2 | D7: 3 | E7: 4 | F7: 5 | G7: 6 | H7: 7 | I7: 8 | J7: 9 | K7: 10 | L7: 11 | M7: 12 | N7: 13 | O7: 14 | P7: 15 | Q7: 16 | R7: 17 | S7: 18 | T7: 19 | U7: 20 | V7: 21 | W7: 22 | X7: 23 | Y7: 24
A8: N° | B8: MATRICULE | C8: NOM ET PRENOMS | D8: ORI | E8: CF | F8: O.G | G8: E.O | H8: FR | I8: Rang | J8: ANG | K8: Rang | L8: H.G | M8: Rang | N8: MATHS | O8: Rang | P8: P.C | Q8: Rang | R8: SVT | S8: Rang | T8: EPS | U8: Rang | V8: EDCH | W8: Rang | X8: M/20 | Y8: Rang
A9: 1
A10: 2
A11: 3
A12: 4
A13: 5
A14: 6
A15: 7
A16: 8
A17: 9
A18: 10
A19: 11
A20: 12
A21: 13
A22: 14
A23: 15
A24: 16
A25: 17
A26: 18
A27: 19
A28: 20
A29: 21
A30: 22
A31: 23
A32: 24
A33: 25
A34: 26
A35: 27
A36: 28
A37: 29
A38: 30
A39: 31
A40: 32
A41: 33
A42: 34
A43: 35
A44: 36
A45: 37
A46: 38
A47: 39
A48: 40
A49: 41
A50: 42
A51: 43
A52: 44
A53: 45
A54: 46
A55: 47
A56: 48
A57: 49
A58: 50
A59: 51
A60: 52
A61: 53
A62: 54
A63: 55
A64: 56
A65: 57
A66: 58
A67: 59
A68: 60
A69: 61
A70: 62
A71: 63
A72: 64
A73: 65
A74: 66
A75: 67
A76: 68
A77: 69
A78: 70

Sheet 6ème
A1: MINISTERE DE L’EDUCATION NATIONALE REPUBLIQUE DE CÔTE D’IVOIRE
A2: DE L’ENSEIGNEMENT TECHNIQUE ET
A3: DE LA FORMATION PROFESSIONNELLE Union – Discipline - Travail
A5: COLLEGE | E5: Année Scolaire : 2017 – 2018
A6: Tél : | E6: Classe: | F6: 6ème 2
B7: 1 | C7: 2 | D7: 3 | E7: 4 | F7: 5 | G7: 6 | H7: 7 | I7: 8 | J7: 9 | K7: 10 | L7: 11 | M7: 12 | N7: 13 | O7: 14 | P7: 15 | Q7: 16 | R7: 17 | S7: 18 | T7: 19 | U7: 20 | V7: 21 | W7: 22 | X7: 23 | Y7: 24
A8: N° | B8: MATRICULE | C8: NOM ET PRENOMS | D8: ORI | E8: CF | F8: O.G | G8: E.O | H8: FR | I8: Rang | J8: ANG | K8: Rang | L8: H.G | M8: Rang | N8: MATHS | O8: Rang | P8: P.C | Q8: Rang | R8: SVT | S8: Rang | T8: EPS | U8: Rang | V8: EDCH | W8: Rang | X8: M/20 | Y8: Rang
A9: 1 | B9: 16215341 N | C9: Abraham Isaac | D9: Gontran | E9: 8 | F9: 5 | G9: 16 | H9: =AVERAGE(E9:G9) -> 9.666666667 | I9: =RANK(H9,$H$9:$H$78,0) -> 1 | J9: 13.5 | K9: =RANK(J9,$J$9:$J$78,0) -> 1 | L9: 19.5 | M9: =+RANK(L9,$L$8:$L$78,0) -> 1 | N9: 11.67 | O9: =RANK(N9,$N$8:$N$78,0) -> 1 | P9: 10 | Q9: =RANK(P9,$P$8:$P$78,0) -> 1 | R9: 16.33333333 | S9: =RANK(R9,$R$9:$R$77,0) -> 1 | T9: 16 | U9: 2e | V9: 10 | W9: 23e | X9: =AVERAGE(H9,J9,L9,N9,P9,R9,T9,V9) -> 13.33375 | Y9: =RANK(X9,$X$8:$X$78,0) -> 1
A10: 2 | B10: 1740850 X | C10: Joseph Manasé | D10: Gontran | F10: 7 | H10: 7 | I10: 2 | L10: 19.25 | M10: 2 | T10: 12.67 | U10: 15e | V10: 10 | W10: 23e | X10: 12.23 | Y10: 2
A11: 3
A12: 4
A13: 5
A14: 6
A15: 7
A16: 8
A17: 9
A18: 10
A19: 11
A20: 12
A21: 13
A22: 14
A23: 15
A24: 16
A25: 17
A26: 18
A27: 19
A28: 20
A29: 21
A30: 22
A31: 23
A32: 24
A33: 25
A34: 26
A35: 27
A36: 28
A37: 29
A38: 30
A39: 31
A40: 32
A41: 33
A42: 34
A43: 35
A44: 36
A45: 37
A46: 38
A47: 39
A48: 40
A49: 41
A50: 42
A51: 43
A52: 44
A53: 45
A54: 46
A55: 47
A56: 48
A57: 49
A58: 50
A59: 51
A60: 52
A61: 53
A62: 54
A63: 55
A64: 56
A65: 57
A66: 58
A67: 59
A68: 60
A69: 61
A70: 62
A71: 63
A72: 64
A73: 65
A74: 66
A75: 67
A76: 68
A77: 69
A78: 70

Sheet Bulletin 6ème
A1: MINISTERE DE L’EDUCATION NATIONALE Année scolaire
A2: DE L’ENSEIGNEMENT TECHNIQUE ET 2017 - 2018
A3: DE LA FORMATION PROFESSIONNELLE
A4: DREN :
A5: Etablissement : COLLEGE | I5: Code :
A7: Adresse postale : Téléphone : | I7: Statut :
A8: =VLOOKUP(B9,'6ème'!B7:Y78,2,0) -> Abraham Isaac
A9: Matricule : | B9: 16215341 N | F9: Sexe: | G9: =VLOOKUP(B9,'LISTE des apprenants'!A:D,3,0) -> M | H9: Redoublant (e):
E10: Né(e) le : | H10: Regime:
A11: Classe : | B11: =VLOOKUP(B9,'LISTE des apprenants'!A:D,4,0) -> 6ème | E11: Lieu de naissance : | H11: Affecté(e):
A12: Effectif : | B12: 65 | E12: Nationalité :
A14: DISCIPLINES | C14: Moy. | D14: Coef. | E14: Total | F14: Rang | G14: Appréciation | H14: Professeurs | I14: Signature
A15: Composition française | C15: =VLOOKUP($B$9,'6ème'!$B$8:$Y$78,4,0) -> 8.00 | D15: 1 | E15: =(C15+C16+C17)/3 -> 9.67 | F15: =VLOOKUP($B$9,'6ème'!$B$8:$Y$78,8,0) -> 1 | G15: =IF(E15>=17,"Tres bien",IF(E15>=14,"Bien",IF(E15>=12,"Assez-bien",IF(E15>=10,"Passable",IF(E15>=8,"Insuffisant",IF(E15>=6,"Très insuffisant","Travail nul")))))) -> Insuffisant | H15: MARC
A16: Expression Orale | C16: =VLOOKUP($B$9,'6ème'!$B$8:$Y$78,5,0) -> 5.00 | D16: 1
A17: Orthographe-Grammaire | C17: =VLOOKUP($B$9,'6ème'!$B$8:$Y$78,6,0) -> 16.00 | D17: 1
A18: Anglais | C18: =VLOOKUP($B$9,'6ème'!$B$8:$Y$78,9,0) -> 13.50 | D18: 1 | E18: =C18 -> 13.50 | F18: =VLOOKUP($B$9,'6ème'!$B$8:$Y$78,10,0) -> 1 | G18: =IF(E18>=17,"Tres bien",IF(E18>=14,"Bien",IF(E18>=12,"Assez-bien",IF(E18>=10,"Passable",IF(E18>=8,"Insuffisant",IF(E18>=6,"Très insuffisant","Travail nul")))))) -> Assez-bien | H18: DIGBEU A.
A19: Allemand
A20: Espagnol
A21: Histoire-Géographie | C21: =VLOOKUP($B$9,'6ème'!$B$8:$Y$78,11,0) -> 19.50 | D21: 1 | E21: =C21 -> 19.50 | F21: =VLOOKUP($B$9,'6ème'!$B$8:$Y$78,12,0) -> 1 | G21: =IF(E21>=17,"Tres bien",IF(E21>=14,"Bien",IF(E21>=12,"Assez-bien",IF(E21>=10,"Passable",IF(E21>=8,"Insuffisant",IF(E21>=6,"Très insuffisant","Travail nul")))))) -> Tres bien | H21: CEDRIC
A22: BILAN LETTRES | E22: =SUM(E15:E21)/3 -> 14.22
A23: Mathématiques | C23: =VLOOKUP($B$9,'6ème'!$B$8:$Y$78,13,0) -> 11.67 | D23: 1 | E23: =C23 -> 11.67 | F23: =VLOOKUP($B$9,'6ème'!$B$8:$Y$78,14,0) -> 1 | G23: =IF(E23>=17,"Tres bien",IF(E23>=14,"Bien",IF(E23>=12,"Assez-bien",IF(E23>=10,"Passable",IF(E23>=8,"Insuffisant",IF(E23>=6,"Très insuffisant","Travail nul")))))) -> Passable | H23: GEORGE
A24: Physique- Chimie | C24: =VLOOKUP($B$9,'6ème'!$B$8:$Y$78,15,0) -> 10.00 | D24: 1 | E24: =C24 -> 10.00 | F24: =VLOOKUP($B$9,'6ème'!$B$8:$Y$78,16,0) -> 1 | G24: =IF(E24>=17,"Tres bien",IF(E24>=14,"Bien",IF(E24>=12,"Assez-bien",IF(E24>=10,"Passable",IF(E24>=8,"Insuffisant",IF(E24>=6,"Très insuffisant","Travail nul")))))) -> Passable | H24: KONE
A25: SVT | C25: =VLOOKUP($B$9,'6ème'!$B$8:$Y$78,17,0) -> 16.33 | D25: 1 | E25: =C25 -> 16.33 | F25: =VLOOKUP($B$9,'6ème'!$B$8:$Y$78,18,0) -> 1 | G25: =IF(E25>=17,"Tres bien",IF(E25>=14,"Bien",IF(E25>=12,"Assez-bien",IF(E25>=10,"Passable",IF(E25>=8,"Insuffisant",IF(E25>=6,"Très insuffisant","Travail nul")))))) -> Bien | H25: TUTO
A26: BILAN SCIENCES | E26: =SUM(E23:E25)/3 -> 12.67
A27: Dessin
A28: EPS | C28: =VLOOKUP($B$9,'6ème'!$B$8:$Y$78,19,0) -> 16.00 | D28: 1 | E28: =C28 -> 16.00 | F28: =VLOOKUP($B$9,'6ème'!$B$8:$Y$78,20,0) -> 2e | H28: EPONON
A29: Edhc | C29: =VLOOKUP($B$9,'6ème'!$B$8:$Y$78,21,0) -> 10.00 | D29: 1 | E29: =C29 -> 10.00 | F29: =VLOOKUP($B$9,'6ème'!$B$8:$Y$78,22,0) -> 23e | H29: YOBOUE
A30: Tic à l'école
A31: Conduite | C31: 16 | E31: 16.00 | H31: YAO ADJOUA
A32: Musique
A33: Entrepreneuriat
A34: Bonus TM
D35: =SUM(D17:D31) -> 8 | E35: =(SUM(E15:E21)+SUM(E23:E25)+SUM(E28:E29)) -> 106.67
E36: Moyenne trimestrielle | H36: Résultat de classe
E37: =E35/D35 -> 13.33 | H37: Moy. Générale | I37: Moy. Mini : 7,44
E38: Rang : | F38: =VLOOKUP($B$9,'6ème'!$B$8:$Y$78,24,0) -> 1 | G38: =B12 -> 65 | H38: de la classe: 11,36 | I38: Moy. Maxi :15,81
H40: Directeur des Etudes
E41: =IF(E37>=17,"Tres bien",IF(E37>=14,"Bien",IF(E37>=12,"Assez-bien",IF(E37>=10,"Passable",IF(E37>=8,"Insuffisant",IF(E37>=6,"Très insuffisant","Travail nul")))))) -> Assez-bien
